fUSD/lending_fUSD_20241205
["ID","MTS","AMOUNT","RATE_DAILY","PERIOD"]
[344398028,1733412261477,-912.49,7.499e-05,2]
[344398029,1733412261501,-912.49,7.499e-05,2]
[344398030,1733412261524,-912.49,7.499e-05,2]
[344398031,1733412261546,-912.49,7.499e-05,2]
[344398032,1733412261573,-912.49,7.499e-05,2]
[344398033,1733412261599,-912.49,7.499e-05,2]
[344398034,1733412261621,-912.49,7.499e-05,2]
[344398035,1733412261644,-912.49,7.499e-05,2]
[344398036,1733412261667,-912.49,7.499e-05,2]
[344398037,1733412261689,-912.49,7.499e-05,2]
[344398038,1733412261713,-912.49,7.499e-05,2]
[344398039,1733412261736,-912.49,7.499e-05,2]
[344398040,1733412261761,-912.49,7.499e-05,2]
[344398041,1733412261786,-912.49,7.499e-05,2]
[344398042,1733412261810,-912.49,7.499e-05,2]
[344398043,1733412261839,-912.49,7.499e-05,2]
[344398044,1733412261862,-912.49,7.499e-05,2]
[344398045,1733412261885,-912.49,7.499e-05,2]
[344398046,1733412261915,-912.49,7.499e-05,2]
[344398047,1733412261938,-912.49,7.499e-05,2]
[344398048,1733412261959,-912.59754699,7.499e-05,2]
[344398049,1733412261982,-1202.63,7.499e-05,2]
[344398050,1733412262005,-1202.63,7.499e-05,2]
[344398051,1733412262028,-1202.63,7.499e-05,2]
[344398052,1733412262051,-563.98,7.499e-05,2]
[344398053,1733412262079,-1202.63,7.499e-05,2]
[344398054,1733412262102,-1202.63,7.499e-05,2]
[344398055,1733412262125,-1202.63,7.499e-05,2]
[344398056,1733412262147,-1202.63,7.499e-05,2]
[344398057,1733412262169,-1202.63,7.499e-05,2]
[344398058,1733412262191,-1202.63,7.499e-05,2]
[344398059,1733412262213,-1202.63,7.499e-05,2]
[344398060,1733412262235,-1202.63,7.499e-05,2]
[344398061,1733412262256,-1202.63,7.499e-05,2]
[344398062,1733412262278,-1202.63,7.499e-05,2]
[344398063,1733412262299,-1202.63,7.499e-05,2]
[344398064,1733412262326,-1202.63,7.499e-05,2]
[344398065,1733412262348,-1202.63,7.499e-05,2]
[344398066,1733412262373,-1202.63,7.499e-05,2]
[344398067,1733412262395,-1202.63,7.499e-05,2]
[344398068,1733412262417,-1202.63,7.499e-05,2]
[344398069,1733412262440,-1202.63,7.499e-05,2]
[344398070,1733412262463,-674.11434829,7.499e-05,2]
[344398074,1733412265577,180.0,6.986e-05,2]
[344398100,1733412312539,-300.0,7.498e-05,2]
[344398101,1733412312565,-528.51565171,7.499e-05,2]
[344398102,1733412312595,-1202.63,7.499e-05,2]
[344398103,1733412312624,-1202.63,7.499e-05,2]
[344398104,1733412312650,-1202.71,7.499e-05,2]
[344398105,1733412312680,-602.94119153,7.499e-05,2]
[344398106,1733412312716,-1008.093,7.499e-05,2]
[344398107,1733412312763,-500.0,7.499e-05,2]
[344398108,1733412312791,-500.0,7.499e-05,2]
[344398109,1733412312826,-500.0,7.499e-05,2]
[344398110,1733412312854,-500.0,7.499e-05,2]
[344398111,1733412312879,-500.0,7.499e-05,2]
[344398112,1733412312907,-500.0,7.499e-05,2]
[344398113,1733412312931,-500.0,7.499e-05,2]
[344398114,1733412312954,-500.0,7.499e-05,2]
[344398115,1733412312978,-500.0,7.499e-05,2]
[344398116,1733412313002,-500.0,7.499e-05,2]
[344398117,1733412313039,-500.0,7.499e-05,2]
[344398118,1733412313085,-500.0,7.499e-05,2]
[344398119,1733412313110,-500.0,7.499e-05,2]
[344398120,1733412313134,-500.0,7.499e-05,2]
[344398121,1733412313158,-500.0,7.499e-05,2]
[344398122,1733412313182,-500.0,7.499e-05,2]
[344398123,1733412313205,-500.0,7.499e-05,2]
[344398124,1733412313229,-500.0,7.499e-05,2]
[344398125,1733412313261,-604.54323812,7.499e-05,2]
[344398126,1733412313290,-500.0,7.499e-05,2]
[344398127,1733412313319,-500.0,7.499e-05,2]
[344398128,1733412313346,-500.0,7.499e-05,2]
[344398129,1733412313378,-500.0,7.499e-05,2]
[344398130,1733412313405,-500.0,7.499e-05,2]
[344398131,1733412313432,-500.0,7.499e-05,2]
[344398132,1733412313459,-500.0,7.499e-05,2]
[344398133,1733412313489,-500.0,7.499e-05,2]
[344398134,1733412313517,-500.0,7.499e-05,2]
[344398135,1733412313545,-500.0,7.499e-05,2]
[344398136,1733412313573,-623.19002071,7.499e-05,2]
[344398137,1733412313601,-500.0,7.499e-05,2]
[344398138,1733412313628,-500.0,7.499e-05,2]
[344398139,1733412313653,-500.0,7.499e-05,2]
[344398140,1733412313679,-500.0,7.499e-05,2]
[344398141,1733412313704,-500.0,7.499e-05,2]
[344398142,1733412313729,-500.0,7.499e-05,2]
[344398143,1733412313753,-500.0,7.499e-05,2]
[344398144,1733412313778,-500.0,7.499e-05,2]
[344398145,1733412313802,-500.0,7.499e-05,2]
[344398146,1733412313826,-500.0,7.499e-05,2]
[344398147,1733412313860,-500.0,7.499e-05,2]
[344398148,1733412313888,-500.0,7.499e-05,2]
[344398149,1733412313914,-500.0,7.499e-05,2]
[344398150,1733412313938,-292.5,7.499e-05,2]
[344398151,1733412313962,-500.0,7.499e-05,2]
[344398152,1733412313986,-500.0,7.499e-05,2]
[344398153,1733412314010,-326.4,7.499e-05,2]
[344398154,1733412314034,-500.0,7.499e-05,2]
[344398155,1733412314059,-500.0,7.499e-05,2]
[344398156,1733412314084,-500.0,7.499e-05,2]
[344398157,1733412314111,-500.0,7.499e-05,2]
[344398158,1733412314137,-500.0,7.499e-05,2]
[344398159,1733412314162,-500.0,7.499e-05,2]
[344398160,1733412314187,-500.0,7.499e-05,2]
[344398161,1733412314210,-500.0,7.499e-05,2]
[344398162,1733412314233,-500.0,7.499e-05,2]
[344398163,1733412314258,-500.0,7.499e-05,2]
[344398164,1733412314284,-500.0,7.499e-05,2]
[344398165,1733412314312,-500.0,7.499e-05,2]
[344398166,1733412314337,-500.0,7.499e-05,2]
[344398167,1733412314368,-500.0,7.499e-05,2]
[344398168,1733412314398,-500.0,7.499e-05,2]
[344398169,1733412314423,-500.0,7.499e-05,2]
[344398170,1733412314450,-500.0,7.499e-05,2]
[344398171,1733412314476,-461.6,7.499e-05,2]
[344398172,1733412314505,-446.01946101,7.499e-05,2]
[344398173,1733412314529,-500.0,7.499e-05,2]
[344398174,1733412314553,-500.0,7.499e-05,2]
[344398175,1733412314580,-500.0,7.499e-05,2]
[344398176,1733412314608,-500.0,7.499e-05,2]
[344398177,1733412314633,-500.0,7.499e-05,2]
[344398178,1733412314658,-500.0,7.499e-05,2]
[344398179,1733412314683,-500.0,7.499e-05,2]
[344398180,1733412314709,-500.0,7.499e-05,2]
[344398181,1733412314734,-500.0,7.499e-05,2]
[344398182,1733412314760,-1066.65,7.499e-05,2]
[344398183,1733412314787,-1066.65,7.499e-05,2]
[344398184,1733412314812,-1066.65,7.499e-05,2]
[344398185,1733412314837,-500.0,7.499e-05,2]
[344398186,1733412314865,-1066.65,7.499e-05,2]
[344398187,1733412314892,-1066.65,7.499e-05,2]
[344398188,1733412314918,-1066.65,7.499e-05,2]
[344398189,1733412314942,-1066.65,7.499e-05,2]
[344398190,1733412314967,-1066.65,7.499e-05,2]
[344398191,1733412314991,-1066.65,7.499e-05,2]
[344398192,1733412315015,-1066.65,7.499e-05,2]
[344398193,1733412315048,-1066.65,7.499e-05,2]
[344398194,1733412315078,-1066.65,7.499e-05,2]
[344398195,1733412315106,-1066.65,7.499e-05,2]
[344398196,1733412315134,-558.76,7.499e-05,2]
[344398197,1733412315160,-1066.65,7.499e-05,2]
[344398198,1733412315188,-558.76,7.499e-05,2]
[344398199,1733412315215,-558.76,7.499e-05,2]
[344398200,1733412315243,-1066.65,7.499e-05,2]
[344398201,1733412315270,-558.76,7.499e-05,2]
[344398202,1733412315296,-1066.65,7.499e-05,2]
[344398203,1733412315325,-558.76,7.499e-05,2]
[344398204,1733412315353,-1066.65,7.499e-05,2]
[344398205,1733412315380,-1066.65,7.499e-05,2]
[344398206,1733412315405,-558.76,7.499e-05,2]
[344398207,1733412315428,-558.76,7.499e-05,2]
[344398208,1733412315453,-1066.65,7.499e-05,2]
[344398209,1733412315844,-558.76,7.499e-05,2]
[344398210,1733412315876,-1066.65,7.499e-05,2]
[344398211,1733412315903,-558.76,7.499e-05,2]
[344398212,1733412315930,-1066.65,7.499e-05,2]
[344398213,1733412315955,-1066.65,7.499e-05,2]
[344398214,1733412315979,-558.76,7.499e-05,2]
[344398215,1733412316005,-1066.65,7.499e-05,2]
[344398216,1733412316028,-558.76,7.499e-05,2]
[344398217,1733412316052,-1066.8335016,7.499e-05,2]
[344398218,1733412316077,-558.76,7.499e-05,2]
[344398219,1733412316104,-558.76,7.499e-05,2]
[344398220,1733412316130,-558.76,7.499e-05,2]
[344398221,1733412316155,-558.76,7.499e-05,2]
[344398222,1733412316180,-558.76,7.499e-05,2]
[344398223,1733412316204,-162.11393532,7.499e-05,2]
[344398224,1733412333978,1002.30399991,7e-05,2]
[344398225,1733412351841,365.73,7.025e-05,2]
[344398239,1733412432258,200.0,6.6e-05,2]
[344398240,1733412434363,500.0,6.7e-05,2]
[344398241,1733412436501,800.0,6.8e-05,2]
[344398242,1733412438666,1100.0,6.9e-05,2]
[344398243,1733412440796,1400.0,7e-05,2]
[344398251,1733412518647,250.0,6.942e-05,2]
[344398272,1733412619614,153.64,6.845e-05,2]
[344398287,1733412632309,-153.64,7.099e-05,2]
[344398288,1733412632325,-702.157,7.12e-05,2]
[344398289,1733412632335,-150.0,7.271e-05,2]
[344398290,1733412632344,-2666.0,7.272e-05,2]
[344398291,1733412632354,-225.35793283,7.272e-05,2]
[344398292,1733412632365,-2435.64206717,7.272e-05,2]
[344398293,1733412632375,-2661.0,7.272e-05,2]
[344398294,1733412632384,-1106.75793283,7.272e-05,2]
[344398295,1733412632396,-1554.24206717,7.272e-05,2]
[344398296,1733412632406,-2661.0,7.272e-05,2]
[344398297,1733412632415,-2661.0,7.272e-05,2]
[344398298,1733412632425,-2112.98400935,7.272e-05,2]
[344398299,1733412632435,-153.64,7.352e-05,2]
[344398300,1733412632444,-1000.0,7.4e-05,2]
[344398301,1733412632454,-500.0,7.473e-05,2]
[344398302,1733412632463,-150.0,7.479e-05,2]
[344398303,1733412632473,-458.7194989,7.493e-05,2]
[344398304,1733412632482,-500.0,7.499e-05,2]
[344398305,1733412632491,-500.0,7.499e-05,2]
[344398306,1733412632500,-500.0,7.499e-05,2]
[344398307,1733412632510,-500.0,7.499e-05,2]
[344398308,1733412632520,-500.0,7.499e-05,2]
[344398309,1733412632529,-500.0,7.499e-05,2]
[344398310,1733412632539,-500.0,7.499e-05,2]
[344398311,1733412632548,-500.0,7.499e-05,2]
[344398312,1733412632557,-440.41442458,7.499e-05,2]
[344398313,1733412632590,-59.58557542,7.499e-05,2]
[344398314,1733412632599,-226.06121132,7.499e-05,2]
[344398315,1733412632616,-273.93878868,7.499e-05,2]
[344398316,1733412632626,-500.0,7.499e-05,2]
[344398317,1733412632636,-500.0,7.499e-05,2]
[344398318,1733412632646,-500.0,7.499e-05,2]
[344398319,1733412632655,-500.0,7.499e-05,2]
[344398320,1733412632665,-500.0,7.499e-05,2]
[344398321,1733412632679,-500.0,7.499e-05,2]
[344398322,1733412632689,-500.0,7.499e-05,2]
[344398323,1733412632698,-500.0,7.499e-05,2]
[344398324,1733412632708,-500.0,7.499e-05,2]
[344398325,1733412632718,-500.0,7.499e-05,2]
[344398326,1733412632727,-500.0,7.499e-05,2]
[344398327,1733412632737,-500.0,7.499e-05,2]
[344398328,1733412632746,-500.0,7.499e-05,2]
[344398329,1733412632756,-254.50062689,7.499e-05,2]
[344398330,1733412632765,-500.0,7.499e-05,2]
[344398331,1733412632775,-500.0,7.499e-05,2]
[344398332,1733412632784,-500.0,7.499e-05,2]
[344398333,1733412632793,-337.75126276,7.499e-05,2]
[344398334,1733412632803,-500.0,7.499e-05,2]
[344398335,1733412632814,-500.0,7.499e-05,2]
[344398336,1733412632825,-500.0,7.499e-05,2]
[344398337,1733412632835,-500.0,7.499e-05,2]
[344398338,1733412632844,-500.0,7.499e-05,2]
[344398339,1733412632854,-500.0,7.499e-05,2]
[344398340,1733412632863,-500.0,7.499e-05,2]
[344398341,1733412632872,-500.0,7.499e-05,2]
[344398342,1733412632882,-500.0,7.499e-05,2]
[344398343,1733412632891,-500.0,7.499e-05,2]
[344398344,1733412632900,-500.0,7.499e-05,2]
[344398345,1733412632909,-500.0,7.499e-05,2]
[344398346,1733412632919,-308.04606468,7.499e-05,2]
[344398347,1733412632928,-500.0,7.499e-05,2]
[344398348,1733412632937,-256.37,7.499e-05,2]
[344398349,1733412632947,-482.00000003,7.499e-05,2]
[344398350,1733412632957,-648.07,7.499e-05,2]
[344398351,1733412632966,-648.07,7.499e-05,2]
[344398352,1733412632975,-648.07,7.499e-05,2]
[344398353,1733412632984,-648.07,7.499e-05,2]
[344398354,1733412632993,-648.07,7.499e-05,2]
[344398355,1733412633003,-648.07,7.499e-05,2]
[344398356,1733412633012,-648.07,7.499e-05,2]
[344398357,1733412633021,-648.07,7.499e-05,2]
[344398358,1733412633031,-648.07,7.499e-05,2]
[344398359,1733412633040,-648.07,7.499e-05,2]
[344398360,1733412633049,-648.07,7.499e-05,2]
[344398361,1733412633059,-648.07,7.499e-05,2]
[344398362,1733412633071,-648.07,7.499e-05,2]
[344398363,1733412633081,-648.07,7.499e-05,2]
[344398364,1733412633091,-648.07,7.499e-05,2]
[344398365,1733412633100,-648.07,7.499e-05,2]
[344398366,1733412633109,-648.07,7.499e-05,2]
[344398367,1733412633119,-648.07,7.499e-05,2]
[344398368,1733412633128,-648.07,7.499e-05,2]
[344398369,1733412633137,-648.07,7.499e-05,2]
[344398370,1733412633147,-648.07,7.499e-05,2]
[344398371,1733412633156,-648.07,7.499e-05,2]
[344398372,1733412633165,-648.07,7.499e-05,2]
[344398373,1733412633174,-648.09,7.499e-05,2]
[344398374,1733412633183,-500.0,7.499e-05,2]
[344398375,1733412633193,-500.0,7.499e-05,2]
[344398376,1733412633202,-500.0,7.499e-05,2]
[344398377,1733412633212,-500.0,7.499e-05,2]
[344398378,1733412633222,-604.0,7.499e-05,2]
[344398379,1733412633231,-20000.0,7.5e-05,2]
[344398380,1733412633241,-138121.56639573,7.5e-05,2]
[344398381,1733412633254,-10245.0,7.5e-05,2]
[344398382,1733412633265,-359.80521546,7.5e-05,2]
[344398383,1733412633278,-46983.17303036,7.5e-05,2]
[344398384,1733412633302,-119429.55236033,7.5e-05,2]
[344398385,1733412633315,-1826.64230177,7.5e-05,2]
[344398386,1733412633339,-19474.99999995,7.5e-05,2]
[344398387,1733412636835,-500.0,7.499e-05,2]
[344398388,1733412636846,-792.0,7.499e-05,2]
[344398389,1733412636856,-412953.94404969,7.5e-05,2]
[344398390,1733412636868,-6471.875,7.5e-05,2]
[344398495,1733412638141,-1.33687283,7.5e-05,2]
[344398498,1733412638159,-2040.0,7.5e-05,2]
[344398501,1733412638183,-550.0,7.5e-05,2]
[344398504,1733412638194,-257.76704,7.5e-05,2]
[344398507,1733412638209,-22880.47098033,7.5e-05,2]
[344398509,1733412638221,-20384.0,7.5e-05,2]
[344398512,1733412638232,-6502.80152787,7.5e-05,2]
[344398514,1733412638243,-25760.7,7.5e-05,2]
[344398516,1733412638254,-48243.81051107,7.5e-05,2]
[344398518,1733412638265,-38646.88400167,7.5e-05,2]
[344398531,1733412638381,-596.01104426,7.499e-05,2]
[344398533,1733412638391,-26819.36248316,7.5e-05,2]
[344398537,1733412638422,-2188.43015915,7.5e-05,2]
[344398539,1733412638433,-2013.775764,7.5e-05,2]
[344398542,1733412638445,-251.84691992,7.5e-05,2]
[344398544,1733412638456,-7270.766872,7.5e-05,2]
[344398546,1733412638467,-9773.85513657,7.5e-05,2]
[344398550,1733412638499,-5644.08950036,7.5e-05,2]
[344398553,1733412638513,-5387.0,7.5e-05,2]
[344398555,1733412638525,-146455.17537396,7.5e-05,2]
[344398578,1733412638754,-500.0,7.499e-05,2]
[344398580,1733412638763,-728.73256,7.5e-05,2]
[344398582,1733412638775,-119240.14228323,7.5e-05,2]
[344398722,1733412640228,-472.149,7.434e-05,2]
[344398724,1733412640239,-500.0,7.499e-05,2]
[344398726,1733412640248,-13728.86875072,7.5e-05,2]
[344398729,1733412640260,-204877.21362613,7.5e-05,2]
[344398731,1733412640270,-9050.07619198,7.5e-05,2]
[344398734,1733412640286,-864.60574511,7.5e-05,2]
[344398741,1733412640333,-329.3548046,7.499e-05,2]
[344398743,1733412640343,-181.7057454,7.5e-05,2]
[344398745,1733412640354,-2721.52118593,7.5e-05,2]
[344398754,1733412640433,-18794.38008251,7.5e-05,2]
[344398757,1733412640445,-38965.58,7.5e-05,2]
[344398765,1733412640526,-306.43264,7.5e-05,2]
[344398767,1733412640537,-389.03447055,7.5e-05,2]
[344398930,1733412643291,-1686.371,7.434e-05,2]
[344398931,1733412643300,-500.0,7.499e-05,2]
[344398932,1733412643309,-500.0,7.499e-05,2]
[344398933,1733412643322,-500.0,7.499e-05,2]
[344398934,1733412643331,-500.0,7.499e-05,2]
[344398935,1733412643341,-240.41961194,7.499e-05,2]
[344398936,1733412643417,-259.58038806,7.499e-05,2]
[344398937,1733412643427,-500.0,7.499e-05,2]
[344398938,1733412643437,-500.0,7.499e-05,2]
[344398939,1733412643446,-500.0,7.499e-05,2]
[344398940,1733412643456,-500.0,7.499e-05,2]
[344398941,1733412643466,-500.0,7.499e-05,2]
[344398942,1733412643475,-709.0,7.499e-05,2]
[344398943,1733412643484,-6767.85161194,7.5e-05,2]
[344398944,1733412643495,-8087.0735218,7.5e-05,2]
[344398945,1733412643507,-1104.59900306,7.5e-05,2]
[344398946,1733412643518,-31962.74994153,7.5e-05,2]
[344398947,1733412643530,-17723.95516143,7.5e-05,2]
[344398948,1733412643539,-150.0,7.5e-05,2]
[344398949,1733412643549,-633.0,7.5e-05,2]
[344398950,1733412643559,-1097.0,7.5e-05,2]
[344398951,1733412643574,-630.0,7.5e-05,2]
[344398952,1733412643586,-306082.61286349,7.5e-05,2]
[344398953,1733412643598,-2986.4159607,7.5e-05,2]
[344398955,1733412644963,-0.03102371,7.5e-05,2]
[344398956,1733412645277,-20384.0,7.5e-05,2]
[344398957,1733412645289,-7762.6,7.5e-05,2]
[344398958,1733412645301,-514.6687894,7.5e-05,2]
[344398959,1733412645312,-931.13278959,7.5e-05,2]
[344398960,1733412645336,-500.0,7.499e-05,2]
[344398961,1733412645346,-21991.7547035,7.5e-05,2]
[344398962,1733412645357,-13112.42647792,7.5e-05,2]
[344398964,1733412645368,-18543.60032,7.5e-05,2]
[344398967,1733412645384,-809.85675073,7.5e-05,2]
[344398968,1733412645395,-381.82056366,7.5e-05,2]
[344398969,1733412645406,-1996.23677394,7.5e-05,2]
[344398970,1733412645417,-5173.89594983,7.5e-05,2]
[344398971,1733412645428,-5353.97371744,7.5e-05,2]
[344398972,1733412645439,-12223.09255849,7.5e-05,2]
[344398973,1733412645450,-5946.57460622,7.5e-05,2]
[344398974,1733412645461,-7163.8608419,7.5e-05,2]
[344398975,1733412645472,-396.98596886,7.5e-05,2]
[344398980,1733412646294,-435.12,7.48e-05,2]
[344398981,1733412646303,-5272.2728958,7.494e-05,2]
[344398982,1733412646313,-617.03790051,7.499e-05,2]
[344398983,1733412646329,-569.96539058,7.499e-05,2]
[344398984,1733412646339,-464.12496438,7.499e-05,2]
[344398985,1733412646348,-500.0,7.499e-05,2]
[344398986,1733412646357,-350.33990914,7.499e-05,2]
[344398987,1733412646367,-430.6324739,7.499e-05,2]
[344398988,1733412646376,-398.59805559,7.499e-05,2]
[344398989,1733412646386,-261.50833075,7.499e-05,2]
[344398990,1733412646396,-286.09668692,7.499e-05,2]
[344398991,1733412646405,-500.0,7.499e-05,2]
[344398992,1733412646415,-500.0,7.499e-05,2]
[344398993,1733412646425,-500.0,7.499e-05,2]
[344398994,1733412646435,-290753.244263,7.5e-05,2]
[344398995,1733412646447,-7762.00000006,7.5e-05,2]
[344398996,1733412646459,-3703.19207369,7.5e-05,2]
[344398997,1733412646470,-446.45,7.5e-05,2]
[344398998,1733412646481,-23342.228829,7.5e-05,2]
[344398999,1733412646493,-667135.89243956,7.5e-05,2]
[344399000,1733412646504,-344.89727693,7.5e-05,2]
[344399001,1733412646520,-984.81033,7.5e-05,2]
[344399002,1733412646560,-384.72798145,7.5e-05,2]
[344399005,1733412646578,-6069.3507,7.5e-05,2]
[344399007,1733412646590,-9987.84992261,7.5e-05,2]
[344399014,1733412856782,180.0,6.687e-05,2]
[344399015,1733412973823,186.21,6.74e-05,2]
[344399021,1733413055334,20000.0,0.000199,120]
[344399022,1733413082358,250.0,6.667e-05,2]
[344399023,1733413092174,1000.0,7.041e-05,2]
[344399027,1733413323413,153.64,6.687e-05,2]
[344399029,1733413561712,176.94,6.608e-05,2]
[344399035,1733413818555,400.0,6.8e-05,2]
[344399036,1733413820840,900.0,6.9e-05,2]
[344399037,1733413822779,1400.0,7e-05,2]
[344399049,1733413832499,-672.974,7.12e-05,2]
[344399050,1733413832509,-206.32048765,7.12e-05,2]
[344399051,1733413832518,-1804.3946,7.399e-05,2]
[344399053,1733413832527,-190.75465647,7.452e-05,2]
[344399055,1733413832537,-150.0,7.452e-05,2]
[344399056,1733413832546,-535.48212679,7.473e-05,2]
[344399057,1733413832555,-167.43232862,7.473e-05,2]
[344399058,1733413832564,-516.06934883,7.473e-05,2]
[344399059,1733413832574,-500.0,7.473e-05,2]
[344399060,1733413832583,-500.0,7.473e-05,2]
[344399061,1733413832593,-190.75465645,7.476e-05,2]
[344399062,1733413832603,-150.0,7.479e-05,2]
[344399063,1733413832612,-11334.2491314,7.489e-05,2]
[344399064,1733413832621,-3004.5601328,7.489e-05,2]
[344399065,1733413832631,-150.0,7.49e-05,2]
[344399066,1733413832639,-150.0,7.49e-05,2]
[344399067,1733413832649,-150.0,7.49e-05,2]
[344399068,1733413832658,-150.0,7.49e-05,2]
[344399069,1733413832668,-150.0,7.49e-05,2]
[344399070,1733413832678,-150.0,7.49e-05,2]
[344399071,1733413832687,-150.0,7.49e-05,2]
[344399072,1733413832696,-300.0,7.49e-05,2]
[344399073,1733413832706,-150.0,7.49e-05,2]
[344399074,1733413832715,-728.2,7.49e-05,2]
[344399075,1733413832724,-150.0,7.49e-05,2]
[344399076,1733413832733,-364.12,7.49e-05,2]
[344399077,1733413832746,-150.0,7.49e-05,2]
[344399078,1733413832756,-504.5469971,7.492e-05,2]
[344399079,1733413832765,-1000.0,7.497e-05,2]
[344399080,1733413832775,-150.99,7.497e-05,2]
[344399081,1733413832784,-299.99,7.497e-05,2]
[344399082,1733413832793,-150.0,7.497e-05,2]
[344399083,1733413832803,-416.39437599,7.498e-05,2]
[344399084,1733413832812,-999.99,7.498e-05,2]
[344399085,1733413832821,-3667.1,7.498e-05,2]
[344399086,1733413832831,-224.55537946,7.498e-05,2]
[344399087,1733413832840,-500.0,7.498e-05,2]
[344399088,1733413832849,-500.0,7.498e-05,2]
[344399089,1733413832858,-500.0,7.498e-05,2]
[344399090,1733413832867,-500.0,7.498e-05,2]
[344399091,1733413832877,-300.54568466,7.498e-05,2]
[344399092,1733413832886,-500.0,7.498e-05,2]
[344399093,1733413832895,-327.81730306,7.498e-05,2]
[344399094,1733413832904,-500.0,7.498e-05,2]
[344399095,1733413832914,-979.2,7.498e-05,2]
[344399096,1733413832923,-500.0,7.498e-05,2]
[344399097,1733413832932,-291.02444765,7.498e-05,2]
[344399098,1733413832942,-500.0,7.498e-05,2]
[344399099,1733413832951,-500.0,7.498e-05,2]
[344399100,1733413832960,-500.0,7.498e-05,2]
[344399101,1733413832970,-500.0,7.498e-05,2]
[344399102,1733413832981,-500.0,7.498e-05,2]
[344399104,1733413832994,-500.0,7.498e-05,2]
[344399106,1733413833004,-500.0,7.498e-05,2]
[344399108,1733413833014,-286.06,7.498e-05,2]
[344399111,1733413833024,-500.0,7.498e-05,2]
[344399112,1733413833034,-500.0,7.498e-05,2]
[344399114,1733413833043,-500.0,7.498e-05,2]
[344399116,1733413833056,-500.0,7.498e-05,2]
[344399118,1733413833066,-500.0,7.498e-05,2]
[344399120,1733413833076,-500.0,7.498e-05,2]
[344399122,1733413833086,-500.0,7.498e-05,2]
[344399124,1733413833095,-261.2,7.498e-05,2]
[344399126,1733413833105,-238.02641465,7.498e-05,2]
[344399128,1733413833115,-500.0,7.498e-05,2]
[344399130,1733413833124,-500.0,7.498e-05,2]
[344399133,1733413833134,-1086.15880383,7.498e-05,2]
[344399134,1733413833143,-244.52747779,7.498e-05,2]
[344399136,1733413833152,-481.6,7.498e-05,2]
[344399139,1733413833162,-500.0,7.498e-05,2]
[344399141,1733413833172,-1175.84,7.498e-05,2]
[344399143,1733413833181,-500.0,7.498e-05,2]
[344399144,1733413833191,-468.94260619,7.498e-05,2]
[344399146,1733413833200,-500.0,7.498e-05,2]
[344399149,1733413833210,-500.0,7.498e-05,2]
[344399150,1733413833219,-500.0,7.498e-05,2]
[344399152,1733413833228,-500.0,7.498e-05,2]
[344399154,1733413833238,-500.0,7.498e-05,2]
[344399156,1733413833254,-500.0,7.498e-05,2]
[344399159,1733413833268,-243.62498899,7.498e-05,2]
[344399160,1733413833278,-500.0,7.498e-05,2]
[344399162,1733413833287,-500.0,7.498e-05,2]
[344399165,1733413833297,-500.0,7.498e-05,2]
[344399167,1733413833307,-500.0,7.498e-05,2]
[344399169,1733413833316,-500.0,7.498e-05,2]
[344399171,1733413833326,-500.0,7.498e-05,2]
[344399173,1733413833336,-500.0,7.498e-05,2]
[344399174,1733413833345,-500.0,7.498e-05,2]
[344399176,1733413833355,-500.0,7.498e-05,2]
[344399178,1733413833365,-500.0,7.498e-05,2]
[344399180,1733413833375,-190.63355965,7.498e-05,2]
[344399182,1733413833384,-500.0,7.498e-05,2]
[344399184,1733413833393,-500.0,7.498e-05,2]
[344399186,1733413833403,-500.0,7.498e-05,2]
[344399188,1733413833412,-500.0,7.498e-05,2]
[344399190,1733413833422,-500.0,7.498e-05,2]
[344399192,1733413833431,-500.0,7.498e-05,2]
[344399194,1733413833441,-500.0,7.498e-05,2]
[344399196,1733413833450,-500.0,7.498e-05,2]
[344399198,1733413833460,-500.0,7.498e-05,2]
[344399200,1733413833470,-1477.57,7.498e-05,2]
[344399202,1733413833479,-1477.57,7.498e-05,2]
[344399204,1733413833488,-499.48,7.498e-05,2]
[344399206,1733413833498,-500.0,7.498e-05,2]
[344399208,1733413833507,-500.0,7.498e-05,2]
[344399210,1733413833516,-500.0,7.498e-05,2]